bitfinex/quotes_BTCUSD_20260110
["timestamp","ask_amount","ask_price","bid_price","bid_amount"]
[1768049943087,0.0001497,90726.0,90723.0,0.01102256]
[1768049943912,0.0001497,90726.0,90723.0,0.01093235]
[1768049945353,0.0001497,90726.0,90722.0,0.01102268]
[1768049947173,0.0001497,90726.0,90723.0,0.01102256]
[1768049947626,0.0001497,90726.0,90723.0,0.01097739]
[1768049947968,0.0001497,90726.0,90722.0,0.01102268]
[1768049948173,0.0001497,90726.0,90723.0,0.01102256]
[1768049952515,0.0001497,90726.0,90723.0,0.06613521]
[1768049952714,0.0001497,90726.0,90722.0,0.01102268]
[1768049953172,0.0001497,90726.0,90721.0,0.0110228]
[1768049953530,0.0001497,90726.0,90723.0,0.01102256]
[1768049953722,0.0001497,90726.0,90723.0,0.01097739]
[1768049957018,0.0001497,90726.0,90722.0,0.01102268]
[1768049958748,0.0001497,90726.0,90723.0,0.01102256]
[1768049959781,0.0001497,90726.0,90722.0,0.01102268]
[1768049960001,0.0001497,90726.0,90723.0,0.01102256]
[1768049960506,0.0001497,90726.0,90723.0,0.01097739]
[1768049962341,0.0001497,90726.0,90723.0,0.06609013]
[1768049964445,0.04951921,90734.0,90726.0,0.01102219]
[1768049964643,0.04951921,90734.0,90727.0,0.01102207]
[1768049964843,0.0001497,90735.0,90726.0,0.01102219]
[1768049965032,0.0001497,90735.0,90727.0,0.01102207]
[1768049965435,0.0001497,90735.0,90729.0,0.01102183]
[1768049965676,0.0001497,90735.0,90727.0,0.01102207]
[1768049965677,0.0001497,90735.0,90728.0,0.01102195]
[1768049965847,0.0001497,90735.0,90729.0,0.01102183]
[1768049966058,0.0001497,90735.0,90730.0,0.01102171]
[1768049966250,0.0001497,90735.0,90732.0,0.01102146]
[1768049966620,0.0001497,90735.0,90731.0,0.01102159]
[1768049967769,0.0001497,90735.0,90732.0,0.01102146]
[1768049967916,0.0001497,90735.0,90731.0,0.01102159]
[1768049968300,0.0001497,90735.0,90732.0,0.01102146]
[1768049968509,0.0001497,90735.0,90731.0,0.01102159]
[1768049969432,0.0001497,90735.0,90732.0,0.01102146]
[1768049970844,0.0001497,90735.0,90731.0,0.01102159]
[1768049971244,0.0001497,90735.0,90729.0,0.06613082]
[1768049971245,0.0001497,90735.0,90729.0,0.01102183]
[1768049971830,0.0001497,90735.0,90731.0,0.01102159]
[1768049972029,0.0001497,90735.0,90732.0,0.01102146]
[1768049972230,0.0001497,90735.0,90732.0,0.01093125]
[1768049973893,0.0001497,90735.0,90732.0,0.01086294]
[1768049975429,0.0001497,90735.0,90733.0,0.0551063]
[1768049975585,0.0001497,90735.0,90733.0,0.05510613]
[1768049975811,0.00050649,90743.0,90732.0,0.01086294]
[1768049975812,0.00050649,90743.0,90737.0,0.01102086]
[1768049976023,0.02208,90742.0,90738.0,0.01102074]
[1768049976245,0.02208,90742.0,90737.0,0.01102086]
[1768049976399,0.02208,90742.0,90732.0,0.01086294]
[1768049976400,0.02208,90742.0,90738.0,0.01102074]
[1768049976613,0.02208,90741.0,90737.0,0.01102086]
[1768049976807,0.02208,90741.0,90735.0,0.05510549]
[1768049977036,0.02208,90741.0,90736.0,0.01102098]
[1768049977232,0.02208,90741.0,90734.0,0.01102122]
[1768049977830,0.02208,90741.0,90735.0,0.0110211]
[1768049978250,0.02208,90741.0,90736.0,0.01102098]
[1768049979068,0.02208,90741.0,90736.0,0.01093077]
[1768049979289,0.00050649,90743.0,90736.0,0.01093077]
[1768049979427,0.02208,90742.0,90731.0,0.01102159]
[1768049980273,0.02208,90742.0,90733.0,0.01102134]
[1768049980675,0.02208,90742.0,90734.0,0.01102122]
[1768049980997,0.02208,90742.0,90735.0,0.0110211]
[1768049984596,0.02208,90742.0,90734.0,0.01102122]
[1768049985880,0.02208,90742.0,90735.0,0.0110211]
[1768049986254,0.02208,90742.0,90733.0,0.01102134]
[1768049986699,0.02208,90742.0,90734.0,0.01102122]
[1768049987487,0.02208,90742.0,90734.0,0.010931]
[1768049987906,0.02208,90742.0,90734.0,0.01102122]
[1768049988138,0.02208,90742.0,90735.0,0.0110211]
[1768049988497,0.02208,90742.0,90734.0,0.01102122]
[1768049988899,0.02208,90742.0,90735.0,0.0110211]
[1768049989437,0.02208,90742.0,90734.0,0.01102122]
[1768049989855,0.02208,90742.0,90735.0,0.0110211]
[1768049990711,0.02208,90742.0,90734.0,0.01102122]
[1768049992321,0.02208,90742.0,90735.0,0.0110211]
[1768049993084,0.02208,90742.0,90734.0,0.01102122]
[1768049993710,0.02208,90742.0,90733.0,0.01102134]
[1768049993711,0.02208,90742.0,90732.0,0.05510721]
[1768049993882,0.02208,90742.0,90734.0,0.01102122]
[1768049995215,0.02208,90742.0,90731.0,0.01102159]
[1768049995601,0.02208,90742.0,90733.0,0.01102134]
[1768049995997,0.02208,90742.0,90730.0,0.22999146]
[1768049996217,0.02208,90742.0,90732.0,0.01102146]
[1768049996437,0.02208,90742.0,90731.0,0.01102159]
[1768049996647,0.02208,90742.0,90730.0,0.22999146]
[1768049997071,0.02208,90742.0,90730.0,0.21896975]
[1768049997281,0.02208,90742.0,90730.0,0.22999146]
[1768049997481,0.02208,90742.0,90731.0,0.01102159]
[1768049998232,0.02208,90742.0,90732.0,0.01102146]
[1768049998619,0.02208,90742.0,90733.0,0.01102134]
[1768049999362,0.02208,90742.0,90732.0,0.01102146]
[1768049999572,0.02208,90742.0,90731.0,0.01102159]
[1768049999746,0.02208,90742.0,90732.0,0.01102146]
[1768050000954,0.02208,90742.0,90732.0,0.01074217]
[1768050001582,0.00050649,90743.0,90732.0,0.01102146]
[1768050002137,0.00050649,90743.0,90729.0,0.01102183]
[1768050002365,0.04728349,90740.0,90730.0,0.01102171]
[1768050002909,0.04728349,90740.0,90728.0,0.06613158]
[1768050004307,0.04728349,90740.0,90730.0,0.01102171]
[1768050005077,0.04728349,90740.0,90729.0,0.01102183]
[1768050005238,0.04728349,90740.0,90731.0,0.01102159]
[1768050005436,0.04728349,90740.0,90730.0,0.01102171]
[1768050005596,0.04728349,90740.0,90731.0,0.01102159]
[1768050005796,0.04728349,90740.0,90730.0,0.01102171]
[1768050006409,0.04728349,90740.0,90727.0,0.03310207]
[1768050006826,0.04728349,90740.0,90729.0,0.01102183]
[1768050007036,0.04728349,90740.0,90730.0,0.01102171]
[1768050007666,0.04728349,90740.0,90731.0,0.01102159]
[1768050008254,0.04728349,90740.0,90729.0,0.01102183]
[1768050008881,0.04728349,90740.0,90730.0,0.01102171]
[1768050009550,0.04728349,90740.0,90731.0,0.01102159]
[1768050009755,0.04728349,90740.0,90729.0,0.01102183]
[1768050009968,0.04728349,90740.0,90730.0,0.01102171]
[1768050010527,0.04728349,90740.0,90731.0,0.01102159]
[1768050011447,0.04728349,90740.0,90729.0,0.01102183]
[1768050011608,0.04728349,90740.0,90730.0,0.01102171]
[1768050012410,0.04728349,90740.0,90731.0,0.01102159]
[1768050012619,0.04728349,90740.0,90727.0,0.03310207]
[1768050012820,0.04728349,90740.0,90728.0,0.01102195]
[1768050013221,0.01102086,90737.0,90727.0,0.02208]
[1768050013422,0.05830398,90740.0,90727.0,0.02208]
[1768050013640,0.01102061,90739.0,90727.0,0.02208]
[1768050013844,0.01102074,90738.0,90727.0,0.02208]
[1768050014266,0.01102061,90739.0,90727.0,0.02208]
[1768050014709,0.05830398,90740.0,90727.0,0.02208]
[1768050015245,0.01102061,90739.0,90727.0,0.02208]
[1768050015448,0.01102074,90738.0,90727.0,0.02208]
[1768050015786,0.01102061,90739.0,90727.0,0.02208]
[1768050018386,0.04728349,90740.0,90727.0,0.02208]
[1768050018536,0.05696712,90735.0,90727.0,0.02208]
[1768050018696,0.04594602,90735.0,90727.0,0.02208]
[1768050019913,0.01102098,90736.0,90727.0,0.02208]
[1768050024391,0.0110211,90735.0,90727.0,0.02208]
[1768050024607,0.01102098,90736.0,90727.0,0.02208]
[1768050025723,0.01102086,90737.0,90727.0,0.02208]
[1768050026504,0.01102098,90736.0,90727.0,0.02208]
[1768050027487,0.01102086,90737.0,90727.0,0.02208]
[1768050027690,0.01102098,90736.0,90727.0,0.02208]
[1768050028085,0.01102086,90737.0,90727.0,0.02208]
[1768050028780,0.01102122,90734.0,90719.0,0.02208]
[1768050028915,0.01102122,90734.0,90723.0,0.03307733]
[1768050028916,0.000999,90727.0,90723.0,0.03307733]
[1768050029344,0.01102134,90733.0,90723.0,0.03307733]
[1768050030611,5.038e-05,90734.0,90723.0,0.03307733]
[1768050032120,0.05696748,90732.0,90719.0,0.02208]
[1768050032442,0.05696748,90732.0,90721.0,0.03307963]
[1768050032599,0.04594602,90732.0,90721.0,0.03307963]
[1768050034406,0.05696748,90732.0,90721.0,0.03307963]
[1768050034926,0.04594602,90732.0,90721.0,0.03307963]
[1768050035127,0.05696748,90732.0,90721.0,0.03307963]
[1768050036045,0.04594602,90732.0,90721.0,0.03307963]
[1768050036797,0.04594602,90732.0,90721.0,0.04410243]
[1768050037300,0.04594602,90732.0,90721.0,0.03307963]
[1768050037457,0.05696748,90732.0,90721.0,0.03307963]
[1768050037656,0.04594602,90732.0,90721.0,0.03307963]
[1768050038083,0.05696748,90732.0,90721.0,0.03307963]
[1768050038286,0.04594602,90732.0,90721.0,0.03307963]
[1768050042746,0.04594602,90732.0,90721.0,0.04410243]
[1768050044324,0.04594602,90732.0,90721.0,0.03307963]
[1768050046801,0.01102159,90731.0,90721.0,0.03307963]
[1768050046958,0.05696748,90732.0,90721.0,0.03307963]
[1768050047365,0.01102171,90730.0,90721.0,0.03307963]
[1768050047730,0.01102183,90729.0,90719.0,0.02208]
[1768050047932,0.01102183,90729.0,90716.0,0.08179392]
[1768050048159,0.01102171,90730.0,90716.0,0.09281733]
[1768050048386,0.01102183,90729.0,90716.0,0.08179392]
[1768050048595,0.01102171,90730.0,90716.0,0.09281733]
[1768050048807,0.01102171,90730.0,90717.0,0.01102329]
[1768050049008,0.01102171,90730.0,90716.0,0.09281733]
[1768050049179,0.01102159,90731.0,90717.0,0.01102329]
[1768050051868,0.01102171,90730.0,90716.0,0.059735]
[1768050052001,0.01102159,90731.0,90717.0,0.01102329]
[1768050052399,0.05696748,90732.0,90718.0,0.01102317]
[1768050053152,0.01102183,90729.0,90716.0,0.059735]
[1768050053362,0.01102171,90730.0,90716.0,0.059735]
[1768050054261,0.01102183,90729.0,90716.0,0.059735]
[1768050054646,0.01102171,90730.0,90716.0,0.059735]
[1768050055838,0.01102183,90729.0,90716.0,0.04871159]
[1768050056638,0.01102171,90730.0,90716.0,0.059735]
[1768050056891,0.01102183,90729.0,90716.0,0.04871159]
[1768050057856,0.01102183,90729.0,90716.0,0.059735]
[1768050058060,0.01102171,90730.0,90716.0,0.059735]
[1768050059086,0.01102159,90731.0,90717.0,0.01102329]
[1768050060101,0.01102159,90731.0,90716.0,0.04871159]
[1768050060325,0.01102171,90730.0,90716.0,0.059735]
[1768050060708,0.01102159,90731.0,90717.0,0.01102329]
[1768050061485,0.01102171,90730.0,90716.0,0.059735]
[1768050065307,0.04594602,90732.0,90719.0,0.01102304]
[1768050066277,0.05696748,90732.0,90717.0,0.01102329]
[1768050066516,0.05696748,90732.0,90716.0,0.07075829]
[1768050066991,0.01102159,90731.0,90716.0,0.07075829]
[1768050067497,0.01102159,90731.0,90716.0,0.05973488]
[1768050067712,0.01102171,90730.0,90716.0,0.05973488]
[1768050068286,0.01102171,90730.0,90717.0,0.01102329]
[1768050068469,0.01102159,90731.0,90717.0,0.01102329]
[1768050068873,0.01102159,90731.0,90718.0,0.01102317]
[1768050069098,0.05696748,90732.0,90718.0,0.01102317]
[1768050069305,0.05696748,90732.0,90717.0,0.01102329]
[1768050069503,0.05696748,90732.0,90718.0,0.01102317]
[1768050070134,0.01102159,90731.0,90717.0,0.01102329]
[1768050070540,0.05696748,90732.0,90717.0,0.01102329]
[1768050071298,0.01102159,90731.0,90718.0,0.01102317]
[1768050071460,0.05696748,90732.0,90718.0,0.01102317]
[1768050071879,0.01102159,90731.0,90717.0,0.01102329]
[1768050072081,0.01102171,90730.0,90716.0,0.07075829]
[1768050072998,0.01102159,90731.0,90717.0,0.01102329]
[1768050073358,0.01102159,90731.0,90718.0,0.01102317]
[1768050073857,0.01102159,90731.0,90717.0,0.01102329]
[1768050074144,0.05696748,90732.0,90718.0,0.01102317]
[1768050077816,0.01102159,90731.0,90718.0,0.01102317]
[1768050078010,0.05696748,90732.0,90718.0,0.01102317]
[1768050080423,0.04594602,90732.0,90718.0,0.01102317]
[1768050080622,0.05696748,90732.0,90718.0,0.01102317]
[1768050081676,0.05696748,90732.0,90717.0,0.05795409]
[1768050081854,0.05696748,90732.0,90718.0,0.01102317]
[1768050082048,0.01102159,90731.0,90717.0,0.05795409]
[1768050082928,0.05696748,90732.0,90717.0,0.05795409]
[1768050082929,0.04594602,90732.0,90719.0,0.01102304]
[1768050084774,0.04594602,90732.0,90720.0,0.01102292]
[1768050085582,0.04594602,90732.0,90719.0,0.01102304]
[1768050086110,0.04594602,90732.0,90720.0,0.01102292]
[1768050087552,0.04594602,90732.0,90721.0,0.0110228]
[1768050087770,0.04594602,90732.0,90720.0,0.01102292]
[1768050088093,0.04594602,90732.0,90721.0,0.0110228]
[1768050089122,0.04594602,90732.0,90720.0,0.01102292]
[1768050089335,0.04594602,90732.0,90721.0,0.0110228]
[1768050089672,0.04594602,90732.0,90720.0,0.01102292]
[1768050090028,0.04594602,90732.0,90721.0,0.0110228]
[1768050090226,0.04594602,90732.0,90720.0,0.01102292]
[1768050091107,0.04594602,90732.0,90721.0,0.0110228]
[1768050092018,0.04594602,90732.0,90719.0,0.01102304]
[1768050092829,0.04594602,90732.0,90721.0,0.0110228]
[1768050093035,0.04594602,90732.0,90720.0,0.01102292]
[1768050093240,0.04594602,90732.0,90721.0,0.0110228]
[1768050097347,0.04594602,90732.0,90722.0,0.01102268]
[1768050097565,0.04594602,90732.0,90721.0,0.0110228]
[1768050098129,0.04594602,90732.0,90718.0,0.01102304]
[1768050098338,0.04594602,90732.0,90720.0,0.01102292]
[1768050101293,0.04594602,90732.0,90721.0,0.0110228]
[1768050101467,0.0110716,90734.0,90721.0,0.0110228]
[1768050101693,5.038e-05,90734.0,90721.0,0.0110228]
[1768050102339,0.0110716,90734.0,90720.0,0.01102292]
[1768050103050,5.038e-05,90734.0,90721.0,0.0110228]
[1768050103458,0.0110716,90734.0,90720.0,0.01102292]
[1768050103782,0.05954392,90734.0,90720.0,0.01102292]
[1768050103982,0.01102159,90731.0,90718.0,0.01102304]
[1768050104185,0.01102146,90732.0,90718.0,0.02204621]
[1768050104509,0.01102159,90731.0,90718.0,0.01102304]
[1768050104709,0.01102134,90733.0,90718.0,0.01102304]
[1768050106332,0.01102146,90732.0,90718.0,0.02204621]
[1768050107758,0.01102134,90733.0,90718.0,0.02204621]
[1768050109169,0.01102134,90733.0,90719.0,0.01102304]
[1768050109371,0.01102146,90732.0,90718.0,0.02204621]
[1768050110038,0.01102134,90733.0,90719.0,0.01102304]
[1768050110498,0.01102146,90732.0,90719.0,0.01102304]
[1768050110771,0.01102134,90733.0,90719.0,0.01102304]
[1768050111103,0.05954392,90734.0,90720.0,0.01102292]
[1768050113106,0.0485227,90734.0,90720.0,0.01102292]
[1768050114305,0.0485227,90734.0,90719.0,0.01102304]
[1768050114306,0.05954392,90734.0,90719.0,0.01102304]
[1768050115247,0.05954392,90734.0,90721.0,0.0110228]
[1768050115443,0.1146502,90734.0,90718.0,0.02204621]
[1768050115639,0.04675245,90732.0,90718.0,0.01102304]
[1768050115866,0.01102159,90731.0,90718.0,0.01102304]
[1768050116490,0.05777391,90732.0,90718.0,0.02204621]
[1768050116691,0.01102171,90730.0,90718.0,0.01102304]
[1768050117336,0.01102159,90731.0,90718.0,0.01102304]
[1768050118675,0.01102171,90730.0,90718.0,0.01102304]
[1768050121062,0.01102159,90731.0,90718.0,0.01102304]
[1768050122569,0.04675245,90732.0,90718.0,0.02204621]
[1768050122769,0.05777391,90732.0,90718.0,0.02204621]
[1768050122979,0.04583983,90732.0,90719.0,0.01102304]
[1768050124537,0.04583983,90732.0,90720.0,0.01102292]
[1768050124728,0.04583983,90732.0,90719.0,0.01102304]
[1768050125346,0.04583983,90732.0,90720.0,0.01102292]
[1768050125937,0.04583983,90732.0,90719.0,0.01102304]
[1768050129000,0.04583983,90732.0,90720.0,0.01102292]
[1768050129181,0.04583983,90732.0,90719.0,0.01102304]
[1768050130946,0.04583983,90732.0,90720.0,0.01102292]
[1768050131159,0.04583983,90732.0,90719.0,0.01102304]
[1768050131375,0.04583983,90732.0,90720.0,0.01102292]
[1768050134961,0.04583983,90732.0,90721.0,0.0110228]
[1768050135425,0.04583983,90732.0,90720.0,0.01102292]
[1768050135983,0.04583983,90732.0,90719.0,0.01102304]
[1768050136968,0.04583983,90732.0,90720.0,0.01102292]
[1768050137554,0.04583983,90732.0,90719.0,0.01102304]
[1768050138165,0.04583983,90732.0,90720.0,0.01102292]
[1768050143900,0.04583983,90732.0,90723.0,0.01102256]
[1768050144101,5.038e-05,90734.0,90723.0,0.01102256]
[1768050148274,5.038e-05,90734.0,90721.0,0.0110228]
[1768050148482,5.038e-05,90734.0,90722.0,0.01102268]
[1768050149099,5.038e-05,90734.0,90719.0,0.01102304]
[1768050149300,5.038e-05,90734.0,90721.0,0.0110228]
[1768050149636,5.038e-05,90734.0,90722.0,0.01102268]
[1768050149879,5.038e-05,90734.0,90721.0,0.0110228]
[1768050151407,5.038e-05,90734.0,90722.0,0.01102268]
[1768050152167,0.04815767,90735.0,90720.0,0.01102292]
[1768050152802,0.04815767,90735.0,90721.0,0.0110228]
[1768050154263,0.05917877,90735.0,90721.0,0.0110228]
[1768050157440,0.04815767,90735.0,90722.0,0.01102268]
[1768050157658,0.05917877,90735.0,90721.0,0.0110228]
[1768050157849,0.04815767,90735.0,90721.0,0.0110228]
[1768050158764,0.04815767,90735.0,90722.0,0.01102268]
[1768050161900,0.04815767,90735.0,90723.0,0.01102256]
[1768050162527,0.04815767,90735.0,90722.0,0.01102268]
[1768050165657,0.05917877,90735.0,90721.0,0.0110228]
[1768050166976,0.05917877,90735.0,90722.0,0.01102268]
[1768050167644,0.04815767,90735.0,90722.0,0.01102268]
[1768050167970,0.04815767,90735.0,90723.0,0.01102256]
[1768050169371,0.04815767,90735.0,90722.0,0.01102268]
[1768050169628,0.04815767,90735.0,90723.0,0.01102256]
[1768050170439,0.04815767,90735.0,90724.0,0.01102244]
[1768050172071,0.0477552,90726.0,90705.0,0.04604927]
[1768050172293,0.0477552,90723.0,90708.0,0.01102438]
[1768050172507,0.0477552,90723.0,90715.0,5.038e-05]
[1768050172712,0.05877776,90723.0,90715.0,5.038e-05]
[1768050173117,0.01102268,90722.0,90715.0,5.038e-05]
[1768050173551,0.0110228,90721.0,90715.0,5.038e-05]
[1768050173963,0.01102292,90720.0,90715.0,5.038e-05]
[1768050174723,0.01102304,90719.0,90715.0,5.038e-05]
[1768050174929,0.01102317,90718.0,90715.0,5.038e-05]
[1768050175126,0.01102304,90719.0,90715.0,5.038e-05]
[1768050175302,0.01102317,90718.0,90715.0,5.038e-05]
[1768050175701,0.01102304,90719.0,90715.0,5.038e-05]
[1768050176116,0.01102317,90718.0,90715.0,5.038e-05]
[1768050176359,0.01102292,90720.0,90715.0,3.8e-07]
[1768050176720,0.01102304,90719.0,90715.0,3.8e-07]
[1768050177961,0.01102292,90720.0,90715.0,3.8e-07]
[1768050178530,0.01102304,90719.0,90715.0,3.8e-07]
[1768050178954,0.01102317,90718.0,90715.0,3.8e-07]
[1768050179332,0.01102304,90719.0,90715.0,3.8e-07]
[1768050180368,0.00037574,90716.0,90715.0,3.8e-07]
[1768050182377,0.00037574,90716.0,90705.0,0.04604927]
[1768050182378,0.01102389,90712.0,90705.0,0.01102304]
[1768050182579,0.0477552,90710.0,90705.0,0.01102304]
[1768050182788,0.0477552,90710.0,90704.0,0.0001497]
[1768050182789,0.000949,90705.0,90704.0,0.0001497]
[1768050182962,0.000949,90705.0,90694.0,0.04604927]
[1768050182963,0.01102487,90704.0,90694.0,0.07913732]
[1768050183186,0.0110245,90707.0,90691.0,0.01102645]
[1768050183187,0.01102462,90706.0,90691.0,0.01102645]
[1768050183389,0.0110245,90707.0,90693.0,0.0110262]
[1768050183620,0.01102475,90705.0,90691.0,0.01102487]
[1768050183822,0.01102462,90706.0,90691.0,0.02205132]
[1768050184023,0.01102475,90705.0,90691.0,0.02205132]
[1768050184240,0.01102487,90704.0,90691.0,0.01102487]
[1768050185022,0.01102475,90705.0,90691.0,0.02205132]
[1768050185221,0.05868353,90708.0,90691.0,0.02205132]
[1768050185421,0.0110245,90707.0,90691.0,0.02205132]
[1768050185786,0.01102475,90705.0,90691.0,0.02205132]
[1768050187104,0.01102462,90706.0,90692.0,0.01102633]
[1768050187971,0.01135192,90706.0,90692.0,0.01102633]
[1768050188169,0.01102462,90706.0,90692.0,0.01102633]
[1768050188370,0.01102462,90706.0,90693.0,0.0110262]
[1768050188570,0.0110245,90707.0,90693.0,0.0110262]
[1768050188779,0.01102462,90706.0,90691.0,0.02205132]
[1768050188980,0.0110245,90707.0,90693.0,0.0110262]
[1768050189187,0.01102462,90706.0,90691.0,0.02205132]
[1768050189411,0.0110245,90707.0,90692.0,0.01102633]
[1768050189661,0.01102462,90706.0,90693.0,0.0110262]
[1768050189853,0.01102462,90706.0,90692.0,0.01102633]
[1768050190265,0.05868365,90707.0,90693.0,0.0110262]
[1768050190484,0.04765915,90707.0,90694.0,0.01102608]
[1768050190642,0.05868365,90707.0,90693.0,0.0110262]
[1768050191002,0.04765915,90707.0,90695.0,0.01117566]
[1768050191203,0.04765915,90707.0,90695.0,0.0001497]
[1768050193122,0.04765915,90707.0,90695.0,0.01117566]
[1768050193541,0.00027885,90696.0,90695.0,0.01117566]
[1768050193878,0.00022885,90696.0,90695.0,0.01117566]
[1768050194037,0.00022885,90696.0,90695.0,0.0001497]
[1768050197493,0.00022885,90696.0,90695.0,0.05527953]
[1768050202593,0.04765915,90707.0,90699.0,0.01102547]
[1768050203308,0.04765915,90707.0,90698.0,0.0110256]
[1768050204163,0.04765915,90707.0,90700.0,0.01102535]
[1768050204482,0.04765915,90707.0,90699.0,0.01102547]
[1768050204683,0.04765915,90707.0,90700.0,0.01102535]
[1768050205114,0.04765915,90707.0,90699.0,0.01102547]
[1768050205497,0.04765915,90707.0,90700.0,0.01102535]
[1768050205696,0.04765915,90707.0,90699.0,0.01102547]
[1768050206166,0.04765915,90707.0,90700.0,0.01102535]
[1768050206313,0.04765915,90707.0,90701.0,0.01102523]
[1768050206718,0.04765915,90707.0,90700.0,0.01102535]
[1768050207436,0.04765915,90707.0,90699.0,0.01102547]
[1768050208958,0.04765915,90707.0,90700.0,0.01102535]
[1768050209237,0.04765915,90707.0,90699.0,0.01102547]
[1768050210603,0.04765915,90707.0,90698.0,0.0110256]
[1768050210816,0.04765915,90707.0,90696.0,0.01102584]
[1768050211882,0.04765915,90707.0,90695.0,0.01117566]
[1768050212295,0.04765915,90707.0,90696.0,0.01102584]
[1768050213151,0.04765915,90707.0,90695.0,0.0001497]
[1768050213356,0.04765915,90707.0,90695.0,0.01117566]
[1768050213821,0.04765915,90707.0,90697.0,0.01102572]
[1768050214040,0.04765915,90707.0,90696.0,0.01102584]
[1768050215168,0.04765915,90707.0,90695.0,0.01117566]
[1768050215402,0.04765915,90707.0,90696.0,0.01102584]
[1768050215981,0.04765915,90707.0,90695.0,0.01117566]
[1768050216186,0.04765915,90707.0,90696.0,0.01102584]
[1768050217015,0.04765915,90707.0,90695.0,0.01117566]
[1768050217494,0.04765915,90707.0,90696.0,0.01102584]
[1768050218545,0.04765915,90707.0,90695.0,0.01117566]
[1768050218742,0.04765915,90707.0,90696.0,0.01102584]
[1768050219192,0.04765915,90707.0,90695.0,0.01117566]
[1768050219374,0.04765915,90707.0,90696.0,0.01102584]
[1768050222507,0.04765915,90707.0,90696.0,0.011084]
[1768050222713,0.04765915,90707.0,90698.0,0.0110256]
[1768050222912,0.04765915,90707.0,90699.0,0.01102547]
[1768050223315,0.04765915,90707.0,90698.0,0.0110256]
[1768050223607,0.04765915,90707.0,90697.0,0.01102572]
[1768050224563,0.04765915,90707.0,90698.0,0.0110256]
[1768050224771,0.04765915,90707.0,90697.0,0.01102572]
[1768050224939,0.04765915,90707.0,90698.0,0.0110256]
[1768050226159,0.04765915,90707.0,90696.0,0.011084]
[1768050226569,0.04765915,90707.0,90696.0,5.816e-05]
[1768050226773,0.04765915,90707.0,90696.0,0.011084]
[1768050232566,0.04765915,90707.0,90698.0,0.0110256]
[1768050233314,0.04765915,90707.0,90697.0,0.01102572]
[1768050234396,0.04765915,90707.0,90696.0,5.816e-05]
[1768050234607,0.04765915,90707.0,90696.0,0.011084]
[1768050237929,0.04765915,90707.0,90696.0,5.816e-05]
[1768050238695,0.04765915,90707.0,90696.0,0.011084]
[1768050238946,0.04765915,90707.0,90696.0,5.816e-05]
[1768050239098,0.04765915,90707.0,90696.0,0.011084]
[1768050242595,0.04765915,90707.0,90697.0,0.01102572]
[1768050242770,0.04765915,90707.0,90696.0,0.011084]
[1768050243173,0.04765915,90707.0,90696.0,5.816e-05]
[1768050243374,0.04765915,90707.0,90697.0,0.01102572]
[1768050243598,0.04765915,90707.0,90696.0,5.816e-05]
[1768050243936,0.04765915,90707.0,90696.0,0.011084]
[1768050244376,0.04765915,90707.0,90696.0,5.816e-05]
[1768050244687,0.04765915,90707.0,90696.0,0.011084]
[1768050244910,0.04765915,90707.0,90697.0,0.01102572]
[1768050245311,0.04765915,90707.0,90698.0,0.0110256]
[1768050245821,0.04765915,90707.0,90699.0,0.01102547]
[1768050245994,0.04765915,90707.0,90700.0,0.01102535]
[1768050249291,0.04765915,90707.0,90699.0,0.01102547]
[1768050251192,0.04765915,90707.0,90698.0,0.0110256]
[1768050251822,0.04765915,90707.0,90700.0,0.01102535]
[1768050252581,0.04765915,90707.0,90697.0,0.01102572]
[1768050252794,0.04765915,90707.0,90696.0,0.011084]
[1768050253541,0.04765915,90707.0,90699.0,0.01102547]
[1768050253746,0.04765915,90707.0,90698.0,0.0110256]
[1768050254682,0.04765915,90707.0,90696.0,0.011084]
[1768050255252,0.04765915,90707.0,90697.0,0.01102572]
[1768050255678,0.04765915,90707.0,90696.0,0.011084]
[1768050255831,0.04765915,90707.0,90697.0,0.01102572]
[1768050256053,0.04765915,90707.0,90698.0,0.0110256]
[1768050256271,0.04765915,90707.0,90697.0,0.01102572]
[1768050256471,0.04765915,90707.0,90698.0,0.0110256]
[1768050256648,0.04765915,90707.0,90697.0,0.01102572]
[1768050259054,0.04765915,90707.0,90699.0,0.01102547]
[1768050260657,0.04765915,90707.0,90696.0,5.816e-05]
[1768050260859,0.04765915,90707.0,90699.0,0.01102547]
[1768050263033,0.04765915,90707.0,90700.0,0.01102535]
[1768050264531,0.04765915,90707.0,90699.0,0.01102547]
[1768050265171,0.04765915,90707.0,90696.0,0.011084]
[1768050265807,0.04765915,90707.0,90697.0,0.01102572]
[1768050266215,0.04765915,90707.0,90698.0,0.0110256]
[1768050266670,0.04765915,90707.0,90696.0,0.011084]
[1768050268818,0.04765915,90707.0,90696.0,0.06621318]
[1768050269227,0.04765915,90707.0,90698.0,0.0110256]
[1768050271945,0.04765915,90707.0,90699.0,0.01102547]
[1768050272364,0.04765915,90707.0,90698.0,0.0110256]
[1768050273971,0.04765915,90707.0,90699.0,0.01102547]
[1768050274574,0.04765915,90707.0,90698.0,0.0110256]
[1768050281445,0.04765915,90707.0,90696.0,5.816e-05]
[1768050281680,0.04765915,90707.0,90696.0,0.011084]
[1768050281892,0.04765915,90707.0,90697.0,0.01102572]
[1768050282391,0.04765915,90707.0,90696.0,0.011084]
[1768050282531,0.04765915,90707.0,90696.0,5.816e-05]
[1768050284042,0.04765915,90707.0,90696.0,0.011084]
[1768050284320,0.04765915,90707.0,90696.0,5.816e-05]
[1768050284784,0.04765915,90707.0,90697.0,0.01102572]
[1768050285105,0.04765915,90707.0,90698.0,0.0110256]
[1768050285286,0.04765915,90707.0,90697.0,0.01102572]
[1768050285696,0.04765915,90707.0,90696.0,5.816e-05]
[1768050286726,0.04765915,90707.0,90696.0,0.011084]
[1768050287998,0.04765915,90707.0,90698.0,0.0110256]
[1768050288202,0.04765915,90707.0,90697.0,0.01102572]
[1768050289245,0.04765915,90707.0,90698.0,0.0110256]
[1768050289440,0.04765915,90707.0,90697.0,0.01102572]
[1768050289671,0.04765915,90707.0,90698.0,0.0110256]
[1768050289850,0.04765915,90707.0,90697.0,0.01102572]
[1768050290479,0.04765915,90707.0,90698.0,0.0110256]
[1768050290909,0.04765915,90707.0,90697.0,0.01102572]
[1768050291497,0.04765915,90707.0,90698.0,0.0110256]
[1768050292339,0.04765915,90707.0,90697.0,0.01102572]
[1768050292564,0.04765915,90707.0,90698.0,0.0110256]
[1768050293698,0.04765915,90707.0,90697.0,0.01102572]
[1768050293917,0.04765915,90707.0,90696.0,5.816e-05]
[1768050295251,0.04765915,90707.0,90697.0,0.01102572]
[1768050295653,0.04765915,90707.0,90698.0,0.0110256]
[1768050295859,0.04765915,90707.0,90697.0,0.01102572]
[1768050296066,0.04765915,90707.0,90698.0,0.0110256]
[1768050296475,0.04765915,90707.0,90699.0,0.01102547]
[1768050298490,0.04765915,90707.0,90700.0,0.01102535]
[1768050300895,0.04765915,90707.0,90698.0,0.0110256]
[1768050301050,0.04765915,90707.0,90699.0,0.01102547]
[1768050301976,0.04765915,90707.0,90698.0,0.0110256]
[1768050302185,0.04765915,90707.0,90696.0,5.816e-05]
[1768050302404,0.04765915,90707.0,90696.0,0.011084]
[1768050302551,0.04765915,90707.0,90696.0,5.816e-05]